bitfinex-derivatives/quotes_SOLF0:USTF0_20250714
["timestamp","ask_amount","ask_price","bid_price","bid_amount"]
[1752499575734,8.47921215,167.1,167.09,6.08692758]
[1752499576139,4.98921215,167.1,167.04,4.00587551]
[1752499576334,3.49,167.09,167.05,6.08382734]
[1752499576537,3.49,167.09,167.06,6.08382734]
[1752499576736,3.49,167.09,167.07,6.08329572]
[1752499576939,3.49,167.09,167.08,6.08329572]
[1752499577738,3.49,167.09,167.08,9.44329572]
[1752499582740,8.35610542,167.1,167.08,9.44329572]
[1752499582941,8.35610542,167.1,167.07,4.04559284]
[1752499582942,5.03610542,167.11,167.09,6.08329572]
[1752499583142,3.32,167.1,167.07,4.04559284]
[1752499583344,5.03610542,167.11,167.08,6.08230807]
[1752499583547,8.35610542,167.1,167.09,9.44230807]
[1752499584748,8.35610542,167.1,167.09,3.36]
[1752499584948,8.35610542,167.1,167.09,9.44151187]
[1752499585645,5.03610542,167.1,167.09,9.44151187]
[1752499585849,8.35610542,167.1,167.09,9.44151187]
[1752499591251,8.35610542,167.1,167.09,6.08151187]
[1752499591450,8.35610542,167.1,167.09,9.44151187]
[1752499591849,3.32,167.1,167.09,9.44151187]
[1752499592344,8.35610542,167.1,167.09,9.44151187]
[1752499593751,8.35610542,167.1,167.09,9.51927891]
[1752499593950,8.35610542,167.1,167.09,6.15927891]
[1752499594150,8.35610542,167.1,167.09,6.16000605]
[1752499595145,8.35610542,167.1,167.09,9.52000605]
[1752499596048,8.35610542,167.1,167.09,6.16000605]
[1752499597354,8.35610542,167.1,167.09,9.52000605]
[1752499601552,3.32,167.1,167.09,9.52000605]
[1752499601753,8.36094819,167.1,167.09,9.52000605]
[1752499602359,8.36094819,167.1,167.09,9.40061662]
[1752499602560,8.36094819,167.1,167.09,9.40187781]
[1752499602856,8.36094819,167.1,167.09,3.36]
[1752499603060,3.32,167.1,167.09,9.40186936]
[1752499605361,3.32,167.1,167.09,9.40614199]
[1752499606264,10.0149414,167.11,167.09,6.04614199]
[1752499606465,3.32,167.1,167.08,2.56839551]
[1752499606655,3.32,167.1,167.09,6.31641811]
[1752499606860,3.32,167.1,167.09,9.90641811]
[1752499608368,3.32,167.1,167.09,9.90819062]
[1752499608664,3.32,167.1,167.09,6.58825432]
[1752499609466,3.32,167.1,167.09,9.15664983]
[1752499609762,3.32,167.1,167.09,12.81452527]
[1752499611065,3.53,167.1,167.08,2.56839551]
[1752499611272,3.53,167.1,167.09,11.79084194]
[1752499611468,3.53,167.1,167.09,9.22244643]
[1752499611770,3.53,167.1,167.09,12.81244643]
[1752499612568,10.2249414,167.11,167.09,12.81244643]
[1752499612769,10.2249414,167.11,167.1,12.81244643]
[1752499613562,10.2249414,167.11,167.1,6.22473758]
[1752499613766,3.53,167.11,167.1,5.58244643]
[1752499614065,6.09839551,167.11,167.1,9.17244643]
[1752499614267,3.53,167.11,167.1,9.17244643]
[1752499614772,12.83102795,167.11,167.1,5.58244643]
[1752499615874,6.09839551,167.11,167.1,5.58244643]
[1752499618874,3.53,167.11,167.1,9.17244643]
[1752499619174,16.19478569,167.11,167.1,9.17244643]
[1752499619575,16.19478569,167.11,167.1,3.59]
[1752499619779,6.09839551,167.11,167.1,3.59]
[1752499620476,3.53,167.1,167.07,0.03971733]
[1752499620675,11.14678369,167.08,167.07,0.03971733]
[1752499620884,3.53,167.07,167.03,3.59]
[1752499621175,3.53,167.03,167.02,3.59]
[1752499621377,6.09839551,167.03,167.02,3.59]
[1752499621875,2.56839551,167.03,167.02,3.59]
[1752499622578,6.09839551,167.03,167.02,3.59]
[1752499623073,3.53,167.02,166.98,3.59]
[1752499623578,7.54771533,167.03,166.98,3.59]
[1752499624174,7.54771533,167.03,166.99,3.59]
[1752499624380,4.01771533,167.03,166.99,3.59]
[1752499624671,7.54771533,167.03,166.99,3.59]
[1752499624877,3.53,167.02,166.99,3.59]
[1752499625482,7.54771533,167.03,166.99,3.59]
[1752499625673,7.54771533,167.03,167.01,3.59]
[1752499625865,181.26115489,167.04,167.01,3.59]
[1752499625866,184.79115489,167.04,167.01,3.59]
[1752499626268,189.83954307,167.04,167.01,3.59]
[1752499628773,5.08954307,167.04,167.01,4.01771533]
[1752499628973,0.04115489,167.04,167.02,3.59]
[1752499629273,0.04115489,167.04,167.03,3.59]
[1752499629774,0.04115489,167.04,167.03,9.67891994]
[1752499630277,0.04115489,167.04,167.03,15.66451994]
[1752499630778,0.04115489,167.04,167.03,19.68223527]
[1752499631872,0.04115489,167.04,167.03,15.66451994]
[1752499632176,3.57115489,167.04,167.03,9.67891994]
[1752499636376,3.57115489,167.04,167.03,3.59]
[1752499636585,7.58887022,167.04,167.03,6.09394008]
[1752499637680,12.6372584,167.04,167.03,6.09394008]
[1752499637984,3.35,167.03,166.96,3.31]
[1752499638187,4.01771533,167.02,166.96,3.31]
[1752499638485,3.35,166.99,166.96,3.31]
[1752499638986,3.39122345,166.99,166.96,3.31]
[1752499640184,3.35,166.98,166.93,3.31]
[1752499640382,7.36771533,166.98,166.93,3.31]
[1752499641187,7.36771533,166.98,166.93,9.2991]
[1752499641383,3.39122345,166.99,166.94,3.31]
[1752499642892,3.35,166.98,166.94,3.31]
[1752499644493,3.39122345,166.99,166.94,3.31]
[1752499644692,0.04122345,166.99,166.95,3.31]
[1752499646296,0.04122345,166.99,166.97,3.31]
[1752499646696,180.08,167.03,166.97,3.31]
[1752499646895,180.08,167.03,166.88,521.31771533]
[1752499646896,180.08,167.03,166.99,3.31]
[1752499647094,0.04384331,167.0,166.99,3.31]
[1752499647796,0.04384331,167.0,166.99,9.2971]
[1752499648495,0.04384331,167.0,166.98,4.01771533]
[1752499648496,8.38208861,167.07,167.02,3.31]
[1752499648700,3.35,167.07,167.04,3.31]
[1752499649000,705.38208861,167.08,167.04,3.31]
[1752499649193,3.35,167.07,167.04,3.31]
[1752499649697,697.0,167.08,167.04,3.35001078]
[1752499649897,3.35,167.07,167.04,3.35001078]
[1752499650301,179.7,167.08,167.04,3.35001078]
[1752499650500,3.35,167.08,167.04,3.35001078]
[1752499651595,3.35,167.1,167.04,3.35001078]
[1752499651801,3.35,167.1,167.05,3.31]
[1752499654397,3.35,167.09,167.05,3.31]
[1752499655303,3.35,167.1,167.06,3.31]
[1752499656005,3.35,167.1,167.06,3.35338618]
[1752499656698,3.35,167.11,167.06,3.35338618]
[1752499656904,3.35,167.1,167.06,3.35338618]
[1752499658403,3.35,167.12,167.06,3.35338618]
[1752499664104,3.35,167.12,167.07,6.03661677]
[1752499664405,3.35,167.12,167.09,3.31]
[1752499664809,3.35,167.12,167.07,3.31]
[1752499665103,3.35,167.12,167.1,3.31]
[1752499666704,3.35,167.11,167.1,3.31]
[1752499669206,3.35,167.11,167.1,3.26615669]
[1752499673311,7.36771533,167.11,167.09,0.03790178]
[1752499673515,3.32,167.1,167.09,0.03790178]
[1752499673711,8.33397712,167.1,167.09,0.03790178]
[1752499674908,3.32,167.1,167.09,3.61790178]
[1752499675211,3.32,167.11,167.09,3.61790178]
[1752499675512,3.32,167.11,167.09,0.03790178]
[1752499675812,3.32,167.11,167.1,3.58]
[1752499677214,3.32,167.12,167.09,0.03790178]
[1752499677411,3.32,167.11,167.1,3.58]
[1752499680410,3.32,167.11,167.09,0.03790178]
[1752499680616,7.33771533,167.1,167.09,0.03790178]
[1752499681215,9.03169245,167.12,167.09,3.61790178]
[1752499681413,7.33771533,167.11,167.09,3.61790178]
[1752499681620,3.32,167.1,167.09,0.03790178]
[1752499683116,12.35169245,167.11,167.1,3.58]
[1752499683313,7.33771533,167.11,167.1,3.58]
[1752499683514,12.35169245,167.11,167.1,3.58]
[1752499683714,8.33397712,167.11,167.1,3.58]
[1752499684621,3.32,167.11,167.1,3.58]
[1752499685318,3.32,167.11,167.09,0.03790178]
[1752499685518,3.32,167.11,167.09,3.61790178]
[1752499685719,3.32,167.1,167.09,3.61790178]
[1752499686425,3.32,167.1,167.09,0.03790178]
[1752499686622,12.35169245,167.1,167.09,0.03790178]
[1752499688226,7.33771533,167.1,167.09,0.03790178]
[1752499691222,14.06865414,167.1,167.09,0.03790178]
[1752499692428,7.33771533,167.1,167.09,0.03790178]
[1752499692824,4.01771533,167.1,167.03,3.58]
[1752499693128,5.03888557,167.05,166.99,3.58]
[1752499693327,5.03888557,167.04,166.99,3.58]
[1752499693525,5.03888557,167.03,166.99,3.58]
[1752499693921,5.03888557,167.02,166.99,3.58]
[1752499694118,3.32,167.04,166.99,3.58]
[1752499694119,5.03888557,167.03,166.99,3.58]
[1752499695428,5.07902106,167.03,166.99,3.58]
[1752499697928,4.01771533,167.01,166.95,3.48]
[1752499698133,7.30771533,167.01,166.95,3.48]
[1752499699833,4.01771533,167.01,166.95,3.48]
[1752499700033,5.07902106,167.03,166.99,3.48]
[1752499700235,0.04013549,167.03,167.0,4.01771533]
[1752499700429,8.32888557,167.05,167.01,3.48]
[1752499701237,8.32888557,167.05,167.02,6.03003082]
[1752499701430,8.32888557,167.05,167.03,6.03003082]
[1752499701733,8.32888557,167.05,167.04,6.03003082]
[1752499702135,3.29,167.05,167.04,6.03003082]
[1752499703433,3.29,167.05,167.04,6.02908857]
[1752499703934,7.30771533,167.05,167.01,3.48]
[1752499704132,4.01771533,167.03,167.02,6.03130378]
[1752499704336,9.04663824,167.03,167.01,3.48]
[1752499704537,5.02892291,167.02,167.01,3.48]
[1752499705138,5.02892291,167.02,166.94,5.9887]
[1752499705339,4.01771533,167.03,166.95,6.03137282]
[1752499705340,9.04663824,167.01,166.95,6.03137282]
[1752499705637,185.76663824,167.01,166.96,6.03137282]
[1752499705831,185.76663824,167.01,166.97,6.03137282]
[1752499706033,185.76663824,167.01,166.98,6.03137282]
[1752499706237,185.76663824,167.01,166.94,5.9887]
[1752499706544,185.76663824,167.01,166.95,6.02976666]
[1752499706740,185.76663824,167.01,166.96,6.02976666]
[1752499706940,185.76663824,167.01,166.94,5.9887]
[1752499707143,3.29,167.0,166.99,3.48]
[1752499707341,3.29,167.0,166.99,9.50548997]
[1752499708230,5.02892291,167.02,166.99,9.50548997]
[1752499708433,3.29,167.02,167.0,6.02548997]
[1752499708638,3.29,167.02,167.01,9.50548997]
[1752499712236,3.29,167.02,167.01,3.48]
[1752499712541,3.29,167.02,167.01,9.82850828]
[1752499714944,179.93,167.04,167.02,3.48]
[1752499715144,176.64,167.04,167.03,9.82850828]
[1752499715334,176.64,167.04,167.03,9.83109655]
[1752499715535,179.93,167.04,167.03,9.83109655]
[1752499716042,179.93,167.04,167.03,10.10246335]
[1752499716233,179.93,167.04,167.03,6.62246335]
[1752499717949,179.93,167.04,167.03,10.10246335]
[1752499719045,179.93,167.04,167.03,6.62246335]
[1752499719248,184.95892291,167.04,167.03,6.62246335]
[1752499720649,179.93,167.04,167.03,6.62246335]
[1752499721148,179.93,167.04,167.02,3.48]
[1752499721346,176.64,167.04,167.03,9.73082138]
[1752499721847,184.95892291,167.04,167.03,9.73082138]
[1752499722042,179.93,167.04,167.03,9.73082138]
[1752499722448,184.95892291,167.04,167.03,9.73082138]
[1752499722647,179.93,167.04,167.03,9.73082138]
[1752499723243,184.95892291,167.04,167.03,9.73082138]
[1752499723446,184.95892291,167.04,167.03,6.25082138]
[1752499724144,180.65771533,167.04,166.97,3.48]
[1752499724348,176.64,167.04,166.98,4.01771533]
[1752499724553,176.64,167.04,167.01,3.48]
[1752499729148,176.64,167.04,166.98,10.00491533]
[1752499730154,176.64,167.04,166.99,5.987]
[1752499731253,176.64,167.04,167.0,5.9866]
[1752499731454,176.64,167.04,167.0,10.00431533]
[1752499733555,176.64,167.04,167.02,4.01771533]
[1752499733954,5.03604337,167.07,167.02,4.01771533]
[1752499734158,5.03604337,167.06,167.02,4.01771533]
[1752499735556,5.03604337,167.07,167.02,10.00361533]
[1752499735757,0.04131581,167.06,167.02,10.00361533]
[1752499735959,0.04131581,167.06,167.03,6.07737298]
[1752499736154,0.04131581,167.06,167.04,6.07737298]
[1752499736456,0.04131581,167.06,167.05,6.07737298]
[1752499741259,0.04131581,167.06,167.01,4.01771533]
[1752499741558,0.04131581,167.06,167.02,6.12985078]
[1752499741759,0.04131581,167.06,167.03,6.12985078]
[1752499741960,0.04131581,167.06,167.04,6.12985078]
[1752499742159,0.04131581,167.06,167.05,6.12985078]
[1752499746155,0.04131581,167.06,167.03,10.00331533]
[1752499746351,0.04131581,167.06,167.04,6.12358252]
[1752499746554,0.04131581,167.06,167.05,6.12358252]
[1752499749563,0.04131581,167.06,167.05,6.12066572]
[1752499752958,4.05903114,167.06,167.05,6.12066572]
[1752499753155,9.09507451,167.06,167.05,6.12066572]
[1752499753360,4.05903114,167.06,167.05,6.12066572]
[1752499753662,4.05903114,167.06,166.97,10.00531533]
[1752499753862,5.02438034,167.05,166.98,6.12587972]
[1752499754059,5.02438034,167.05,166.99,6.12587972]
[1752499754259,5.02438034,167.05,167.0,6.12587972]
[1752499754563,5.02438034,167.05,167.01,6.12587972]
[1752499754762,5.02438034,167.05,167.02,6.12587972]
[1752499754964,5.02438034,167.05,167.03,6.12587972]
[1752499755158,5.02438034,167.05,167.04,6.12587972]
[1752499756359,9.04209567,167.05,167.04,6.12587972]
[1752499758368,9.04209567,167.05,166.97,10.00541533]
[1752499758562,5.02438034,167.04,166.98,6.12773665]
[1752499758762,184.70209567,167.05,166.99,6.12773665]
[1752499758960,184.70209567,167.05,167.0,6.12773665]
[1752499759160,184.70209567,167.05,167.01,6.12773665]
[1752499759363,5.02438034,167.06,167.02,6.12802793]
[1752499759566,5.02438034,167.07,167.03,6.12802793]
[1752499759866,5.02438034,167.07,167.04,6.12802793]
[1752499760068,5.06721009,167.07,167.05,6.12802793]
[1752499760363,5.06721009,167.07,167.06,6.12802793]
[1752499760560,5.02438034,167.07,167.06,6.12802793]
[1752499762462,5.06360352,167.08,167.06,6.12802793]
[1752499762669,5.06360352,167.08,167.07,6.12802793]
[1752499763464,0.03922318,167.08,167.07,6.12802793]
[1752499764867,4.05693851,167.08,167.07,6.12802793]
[1752499765263,4.05693851,167.08,167.07,6.12844841]
[1752499765460,10.7754526,167.08,167.07,6.12844841]
[1752499765665,10.7754526,167.08,167.0,5.9866]
[1752499765862,5.03037165,167.06,167.01,6.12888389]
[1752499766066,184.68808698,167.06,167.02,6.12888389]
[1752499766365,4.01771533,167.04,167.03,6.12888389]
[1752499767162,4.01771533,167.04,166.98,5.9873]
[1752499767367,4.01771533,167.04,166.99,6.12948206]
[1752499767572,4.01771533,167.04,167.0,6.12948206]
[1752499767766,4.01771533,167.04,167.01,6.12948206]
[1752499767967,4.01771533,167.04,167.02,6.12948206]
[1752499768175,4.01771533,167.04,167.03,6.12948206]
[1752499769466,9.04808698,167.04,167.03,6.12948206]
[1752499770472,5.03037165,167.05,167.03,6.12948206]
[1752499770674,5.03037165,167.05,167.04,6.12948206]
[1752499775775,5.03037165,167.05,166.99,5.987]
[1752499775975,5.03037165,167.05,167.0,6.06297794]
[1752499776176,5.03037165,167.05,167.01,6.06297794]
[1752499776378,5.03037165,167.05,167.02,6.06302961]
[1752499776583,5.03037165,167.05,167.03,6.06302961]
[1752499776778,5.03037165,167.05,167.04,6.06302961]
[1752499778880,5.03037165,167.05,167.04,6.06279]
[1752499780685,179.70232963,167.06,167.04,6.06279]
[1752499780879,179.70232963,167.06,167.05,6.06279]
[1752499782690,184.73647938,167.06,166.93,4.01771533]
[1752499782880,4.01771533,167.02,166.93,4.01771533]
[1752499783078,175.6,167.01,166.95,4.01771533]
[1752499783380,175.62,167.03,166.98,5.9872]
[1752499783783,175.62,167.03,166.97,4.01771533]
[1752499784291,175.62,167.03,166.98,5.9871]
[1752499785885,175.62,167.03,166.97,4.01771533]
[1752499786486,175.62,167.03,166.98,5.9871]
[1752499786892,0.04291156,167.02,166.97,4.01771533]
[1752499787593,0.04291156,167.02,166.93,5.03564165]
[1752499787893,0.04291156,167.02,166.99,5.9868]
[1752499788197,0.04291156,167.02,166.99,5.987]
[1752499789694,0.04291156,167.02,166.97,4.01771533]
[1752499790796,0.04291156,167.02,166.99,5.9867]
[1752499791794,0.04291156,167.02,166.98,5.9874]
[1752499792190,0.04291156,167.02,166.93,5.03564165]
[1752499792191,4.06062689,167.02,166.93,5.03564165]
[1752499792394,4.06114622,167.02,166.94,4.01823466]
[1752499792894,4.01823466,167.02,166.94,4.01823466]
[1752499793197,4.01823466,167.02,166.97,5.9875]
[1752499793395,184.67170831,167.03,166.97,5.9875]
[1752499793695,184.67170831,167.03,166.96,5.9881]
[1752499793895,0.03813521,167.02,166.96,5.9881]
[1752499794193,4.01755856,167.01,166.93,9.05320021]
[1752499794494,4.01755856,167.01,166.92,5.03564165]
[1752499794691,4.01755856,167.01,166.93,6.32477439]
[1752499794893,4.01755856,167.01,166.95,5.9883]
[1752499795090,4.01755856,167.01,166.96,6.32477439]
[1752499795289,4.01755856,167.01,166.97,6.32477439]
[1752499795483,9.05170831,167.01,166.95,5.9883]
[1752499795893,5.03414975,167.01,166.97,5.9874]
[1752499796397,0.04379339,167.0,166.98,5.9872]
[1752499797397,0.04379339,167.0,166.93,4.01755856]
[1752499797697,0.04379339,167.0,166.95,4.01755856]
[1752499797998,0.04379339,167.0,166.97,5.9877]
[1752499798297,0.04379339,167.0,166.98,6.23104296]
[1752499798592,0.04379339,167.0,166.99,6.23104296]
[1752499800189,0.04379339,167.0,166.99,12.21804296]
[1752499800586,5.03414975,167.04,166.99,6.23104296]
[1752499800796,5.03414975,167.04,166.98,0.04313777]
[1752499800797,5.03414975,167.04,167.0,10.24860152]
[1752499800993,5.03414975,167.04,167.01,6.23104296]
[1752499801196,5.03414975,167.04,167.03,5.9856]
[1752499801391,5.03414975,167.04,167.03,12.21664296]
[1752499801599,6.71851409,167.07,167.03,6.32546373]
[1752499801895,6.71851409,167.08,167.05,4.01755856]
[1752499802099,6.71851409,167.08,167.06,6.32546373]
[1752499802298,6.71851409,167.08,167.02,0.04127282]
[1752499802299,6.71851409,167.08,167.07,6.32546373]
[1752499802500,14.11394874,167.11,167.07,6.32546373]
[1752499802501,6.71851409,167.09,167.07,6.32546373]
[1752499802693,6.71851409,167.09,167.08,6.32546373]
[1752499802898,14.11394874,167.11,167.08,6.32546373]
[1752499803205,14.11394874,167.11,167.09,6.32546373]
[1752499803403,14.11394874,167.11,167.1,1.24752059]
[1752499804698,10.09639018,167.11,167.1,1.24752059]
[1752499804894,14.11394874,167.12,167.1,1.24752059]
[1752499805093,14.11394874,167.12,167.08,0.04398975]
[1752499805293,6.71825202,167.11,167.08,0.04398975]
[1752499806614,6.71825202,167.12,167.08,4.06154831]
[1752499806801,6.71825202,167.12,167.09,5.9833]
[1752499807205,6.71825202,167.13,167.09,5.9833]
[1752499807505,6.71825202,167.13,167.1,4.01755856]
[1752499807700,6.71825202,167.14,167.1,4.01755856]
[1752499808007,10.73581058,167.14,167.08,6.02778975]
[1752499808204,6.71825202,167.15,167.08,5.9838]
[1752499808398,6.71825202,167.15,167.09,0.04496968]
[1752499808602,6.71825202,167.14,167.09,4.06252824]
[1752499808797,6.71825202,167.15,167.09,4.06252824]
[1752499809298,10.73581058,167.16,167.09,0.04496968]
[1752499809500,4.01755856,167.14,167.09,0.04496968]
[1752499809702,4.01755856,167.12,167.09,0.04496968]
[1752499809900,4.01755856,167.1,167.09,0.04496968]
[1752499810612,4.01755856,167.1,166.99,521.29755856]
[1752499810804,4.01755856,167.08,166.99,521.29755856]
[1752499811204,4.01755856,167.08,167.01,5.9862]
[1752499811408,4.01755856,167.08,166.99,521.29755856]
[1752499811708,4.01755856,167.08,167.01,4.01755856]
[1752499811908,4.01755856,167.08,167.01,10.00385856]
[1752499812106,4.01755856,167.08,167.01,4.01755856]
[1752499812612,4.01755856,167.08,167.01,10.00365856]
[1752499812807,182.25825202,167.13,167.01,4.01755856]
[1752499813005,4.01755856,167.08,167.02,5.03564165]
[1752499813204,4.01755856,167.08,167.02,5.9859]
[1752499813408,4.01755856,167.1,167.01,9.05320021]
[1752499813710,4.01755856,167.1,167.01,4.01755856]
[1752499814211,4.01755856,167.08,167.01,9.05320021]
[1752499814407,4.01755856,167.08,167.01,4.01755856]
[1752499814813,4.01755856,167.08,167.01,10.00365856]
[1752499815011,4.01755856,167.08,166.99,4.01755856]
[1752499815207,4.01755856,167.06,166.97,4.01755856]
[1752499815511,4.01755856,167.04,166.98,6.19703085]
[1752499815711,4.01755856,167.04,166.99,6.19703085]
[1752499816017,0.04020275,167.05,167.0,6.19703085]
[1752499816314,0.04020275,167.05,167.01,6.19703085]
[1752499816518,0.04020275,167.05,167.02,6.19703085]
[1752499816812,4.05776131,167.05,167.03,6.19703085]
[1752499817011,4.05776131,167.05,167.04,6.19703085]
[1752499817210,4.01755856,167.05,167.04,6.19703085]
[1752499818807,4.01755856,167.05,167.04,6.02348309]
[1752499819812,4.01755856,167.05,166.94,4.01755856]
[1752499820004,4.01755856,167.02,166.96,5.988]
[1752499820210,4.01755856,167.02,166.94,4.01755856]
[1752499820409,4.01755856,167.02,166.95,5.9883]
[1752499821105,4.01755856,167.0,166.9,4.01755856]
[1752499821616,4.01755856,166.98,166.9,4.01755856]
[1752499821812,4.01755856,166.98,166.89,83.54307467]
[1752499822015,4.01755856,166.98,166.92,5.9895]
[1752499822212,4.01755856,166.98,166.9,4.01755856]
[1752499822514,0.04045544,166.95,166.89,83.54307467]
[1752499822718,0.04045544,166.95,166.88,4.01755856]
[1752499823108,0.04045544,166.95,166.9,5.99]
[1752499823307,0.04045544,166.95,166.88,4.01755856]
[1752499823716,0.04045544,166.95,166.9,4.01755856]
[1752499824216,4.01755856,166.98,166.9,4.01755856]
[1752499824612,5.9883,166.96,166.92,5.9893]
[1752499825119,4.01755856,166.98,166.9,4.01755856]
[1752499825314,4.01755856,166.98,166.88,4.01755856]
[1752499825518,4.01755856,166.96,166.88,4.01755856]
[1752499825908,4.01755856,166.94,166.86,4.01755856]
[1752499826112,4.01755856,166.94,166.83,180.59564165]
[1752499826309,4.01755856,166.94,166.88,5.9907]
[1752499826513,4.01755856,166.94,166.87,4.01755856]
[1752499826916,4.01755856,166.96,166.87,4.01755856]
[1752499828313,17.97,167.02,166.83,5.03564165]
[1752499828519,17.97,167.02,166.82,9.05320021]
[1752499828520,4.01755856,166.96,166.82,9.05320021]
[1752499828716,4.01755856,166.91,166.82,4.01755856]
[1752499828921,4.01755856,166.91,166.84,4.01755856]
[1752499829117,4.01755856,166.91,166.8,4.01755856]
[1752499829321,4.01755856,166.93,166.87,5.9911]
[1752499829522,0.03772757,166.89,166.84,4.01755856]
[1752499830725,0.03772757,166.89,166.88,4.01755856]
[1752499831027,4.01755856,166.98,166.88,4.01755856]
[1752499831229,4.01755856,166.98,166.9,4.01755856]
[1752499831428,4.01755856,166.98,166.81,181.17564165]
[1752499831429,4.01755856,166.98,166.91,5.9898]
[1752499831619,4.01755856,166.98,166.9,4.01755856]
[1752499831824,517.44,167.01,166.9,4.01755856]
[1752499832135,4.01755856,166.98,166.92,0.03811623]
[1752499832427,4.01755856,166.98,166.93,5.9891]
[1752499832627,4.01755856,167.0,166.93,5.9891]
[1752499833024,517.44,167.01,166.92,4.05567479]
[1752499833224,517.44,167.01,166.94,4.01755856]
[1752499833625,517.44,167.01,166.93,5.9889]
[1752499833930,517.44,167.01,166.96,0.04501959]
[1752499834428,517.44,167.01,166.97,6.21319192]
[1752499834729,517.44,167.01,166.98,6.21234709]
[1752499834928,517.44,167.01,166.96,4.06257815]
[1752499835126,517.44,167.01,166.97,6.21002002]
[1752499835321,4.01755856,167.02,166.98,6.21002002]
[1752499835527,4.01755856,167.02,166.96,0.04501959]
[1752499835721,4.01755856,167.02,166.97,6.21026797]
[1752499835933,4.01755856,167.02,166.96,0.04501959]
[1752499836231,4.01755856,167.02,166.97,6.20988692]
[1752499836532,4.01755856,167.02,166.96,0.04501959]
[1752499836726,4.01755856,167.02,166.97,6.21045339]
[1752499836922,4.01755856,167.0,166.96,0.04501959]
[1752499837324,4.01755856,166.98,166.96,0.04501959]
[1752499837531,4.01755856,166.98,166.96,0.00729202]
[1752499838326,4.01755856,166.98,166.85,4.01755856]
[1752499838629,4.01755856,166.93,166.87,5.9911]
[1752499838830,4.01755856,166.93,166.88,6.21202727]
[1752499839029,4.01755856,166.93,166.89,6.21202727]
[1752499839227,4.01755856,166.93,166.9,6.21202727]
[1752499839427,4.01755856,166.91,166.8,517.54]
[1752499839727,176.24,166.95,166.86,5.9915]
[1752499839728,4.01755856,166.92,166.86,5.9915]
[1752499839927,4.01755856,166.92,166.87,6.21052219]
[1752499840129,4.01755856,166.92,166.88,6.21052219]
[1752499840426,0.04492803,166.91,166.89,6.21052219]
[1752499840628,0.04492803,166.91,166.9,6.21052219]
[1752499840832,0.04492803,166.91,166.9,16.21838075]
[1752499841028,4.01755856,166.98,166.9,10.22808075]
[1752499841232,517.54,166.99,166.92,10.00695856]
[1752499841531,517.54,166.99,166.93,6.21052219]
[1752499841732,0.04362418,166.97,166.94,10.22808075]
[1752499841935,0.04362418,166.97,166.96,4.01755856]
[1752499842236,0.04362418,166.97,166.96,10.22808075]
[1752499842436,0.04362418,166.97,166.96,16.21618075]
[1752499842733,4.01755856,167.06,166.96,10.22808075]
[1752499842934,4.01755856,167.06,166.98,10.00485856]
[1752499843131,4.01755856,167.06,166.99,6.21052219]
[1752499843328,4.01755856,167.06,167.0,6.21052219]
[1752499843528,4.01755856,167.06,166.99,5.9869]
[1752499843725,4.01755856,167.06,167.0,6.20369636]
[1752499843930,4.01755856,167.06,166.99,5.9869]
[1752499844131,4.01755856,167.06,167.01,0.04055832]
[1752499844327,698.01755856,167.07,167.01,0.04055832]
[1752499844631,694.0,167.07,167.01,0.04055832]
[1752499845732,694.0,167.07,167.01,6.02685832]
[1752499845931,176.42,167.07,167.02,6.20458487]
[1752499846133,176.42,167.07,167.03,6.20480911]
[1752499846337,176.42,167.07,167.01,0.04055832]
[1752499846538,176.42,167.07,167.02,12.89552481]
[1752499846735,176.42,167.07,167.03,6.20421488]
[1752499847037,176.38,167.12,167.04,6.20421488]
[1752499847238,176.38,167.12,167.05,6.20421488]
[1752499847544,6.69130993,167.08,166.99,6.69130993]
[1752499847734,6.69130993,167.08,167.07,0.04062218]
[1752499847936,6.69130993,167.08,167.01,5.9863]
[1752499848141,0.04351279,167.05,167.02,6.20387102]
[1752499848333,0.04351279,167.05,167.03,6.20387102]
[1752499848532,0.04351279,167.05,166.99,6.69130993]
[1752499848729,0.04351279,167.05,167.01,6.69130993]
[1752499848933,0.04351279,167.05,167.02,6.20573227]
[1752499849138,6.69130993,167.1,167.03,6.20573227]
[1752499849338,6.69130993,167.1,167.04,6.20573227]
[1752499849637,0.04154409,167.05,167.01,6.69130993]
[1752499849833,6.69130993,167.1,167.02,6.20496206]
[1752499850144,0.0401055,167.05,167.03,6.20496206]
[1752499850345,0.0401055,167.05,167.04,6.20496206]
[1752499850636,183.17130993,167.12,167.04,6.204163]